bitfinex-derivatives/quotes_ETHF0:USTF0_20220106
["timestamp","ask_amount","ask_price","bid_price","bid_amount"]
[1641480740663,2.00479,3409.6,3408.8,2.00479]
[1641480741464,2.00479,3409.6,3407.8,2.00479]
[1641480741465,2.00479,3409.6,3408.3,1.46619182]
[1641480742466,3.08394507,3409.2,3408.7,2.96600481]
[1641480742667,3.73278231,3409.9,3409.0,1.5]
[1641480742866,0.62296571,3410.0,3409.8,0.97229752]
[1641480743067,0.62296571,3410.0,3409.9,0.002]
[1641480744066,0.62296571,3410.0,3409.9,1.46738611]
[1641480744269,0.62296571,3410.0,3409.9,0.002]
[1641480745067,2.20265004,3410.0,3409.9,0.002]
[1641480745272,1.57968433,3410.0,3409.9,0.002]
[1641480746670,2.00479,3410.5,3409.9,0.002]
[1641480747874,0.52770248,3410.0,3409.9,0.002]
[1641480748073,0.98768448,3410.0,3409.9,0.002]
[1641480748872,15.67247448,3410.0,3409.9,0.002]
[1641480749072,18.63870499,3410.0,3409.9,0.002]
[1641480749274,18.63870499,3410.0,3409.4,2.073e-05]
[1641480749473,1.5,3409.5,3409.4,2.073e-05]
[1641480749673,15.16768448,3409.5,3409.0,2.073e-05]
[1641480749873,0.384472,3409.4,3409.0,2.073e-05]
[1641480750174,0.52770248,3409.1,3409.0,2.073e-05]
[1641480750574,1.38486648,3409.1,3409.0,2.073e-05]
[1641480750774,1.38486648,3409.1,3408.8,1.20280808]
[1641480750975,0.52770248,3408.9,3408.3,2.00479]
[1641480751474,0.52770248,3408.5,3408.3,2.00479]
[1641480752778,0.384472,3408.6,3408.3,2.00479]
[1641480752982,0.52770248,3408.5,3408.3,2.00479]
[1641480753177,0.397182,3408.4,3408.0,3.20759808]
[1641480753376,0.52770248,3408.1,3408.0,3.20759808]
[1641480753776,0.98768448,3408.1,3408.0,3.20759808]
[1641480753977,2.88486648,3408.1,3408.0,1.20280808]
[1641480754177,12.68,3408.0,3407.5,1.4433697]
[1641480754377,0.52770248,3407.6,3407.5,1.4433697]
[1641480754576,2.02770248,3407.6,3407.5,1.4433697]
[1641480754779,2.87215648,3407.6,3407.5,1.4433697]
[1641480754977,19.95891848,3407.6,3407.5,1.4433697]
[1641480755582,19.95891848,3407.6,3407.0,4.68042578]
[1641480755777,0.52770248,3407.1,3407.0,3.07990484]
[1641480755978,1.38486648,3407.1,3407.0,3.07990484]
[1641480756381,1.38486648,3407.1,3406.5,1.47715742]
[1641480756578,0.52770248,3406.6,3406.5,1.47715742]
[1641480757581,0.52770248,3406.6,3406.4,0.62296571]
[1641480757781,0.98262403,3406.6,3406.1,2.00479]
[1641480758481,0.52770248,3406.5,3406.1,2.00479]
[1641480759180,0.52770248,3406.5,3406.2,0.46740202]
[1641480760182,0.74778431,3406.4,3406.2,0.46740202]
[1641480762087,1.27548679,3406.5,3406.2,0.46740202]
[1641480762984,0.74778431,3406.5,3406.2,2.47219202]
[1641480763284,0.74778431,3406.6,3406.4,0.97229752]
[1641480763485,0.62317087,3407.5,3406.4,12.68]
[1641480763684,0.62317087,3407.5,3406.3,0.619]
[1641480763685,0.62317087,3407.5,3406.8,0.97229752]
[1641480763882,0.62317087,3407.5,3406.2,2.47219202]
[1641480764083,1.00764287,3407.5,3406.2,2.47219202]
[1641480764483,0.52770248,3407.3,3407.1,1.23035345]
[1641480764687,0.459982,3407.2,3407.1,1.23035345]
[1641480765184,1.38486648,3407.2,3407.1,1.23035345]
[1641480765386,2.00479,3407.3,3407.1,1.23035345]
[1641480765585,0.459982,3407.2,3407.1,1.23035345]
[1641480765784,0.82491825,3407.5,3407.1,1.23035345]
[1641480765986,0.82491825,3407.5,3406.5,3.28669277]
[1641480765987,0.44044625,3407.2,3406.7,1.23035345]
[1641480766185,0.44044625,3407.2,3406.7,2.20265097]
[1641480766685,0.44044625,3407.2,3406.7,1.23035345]
[1641480766986,0.44044625,3407.2,3407.1,4.98187752]
[1641480767185,0.44044625,3407.4,3407.1,6.44832305]
[1641480767386,1.24609308,3407.8,3407.3,0.97229752]
[1641480767584,1.24609308,3407.8,3407.7,0.97229752]
[1641480767784,1.4953117,3408.1,3407.7,0.97229752]
[1641480767984,1.4953117,3408.1,3408.0,0.97229752]
[1641480768385,2.49268349,3408.6,3408.0,1.95987208]
[1641480768587,1.86665401,3409.0,3408.5,0.97229752]
[1641480768786,1.86665401,3409.0,3408.9,0.97229752]
[1641480768986,1.86665401,3409.0,3408.9,4.00958]
[1641480769185,1.86665401,3409.0,3408.9,4.98187752]
[1641480769386,1.86665401,3409.0,3408.9,4.00958]
[1641480769685,2.32663601,3409.0,3408.9,4.00958]
[1641480769886,2.39435649,3409.0,3408.9,4.00958]
[1641480770087,0.52770248,3409.5,3408.9,4.00958]
[1641480771091,0.52770248,3409.7,3408.9,4.00958]
[1641480771289,2.00479,3409.9,3408.9,4.00958]
[1641480771588,2.00479,3409.9,3409.0,1.41874769]
[1641480772488,0.52770248,3409.7,3409.0,1.41874769]
[1641480772689,0.781654,3409.6,3409.0,1.41874769]
[1641480772888,0.52770248,3409.1,3409.0,1.41874769]
[1641480773089,1.38486648,3409.1,3409.0,1.41874769]
[1641480773292,1.38486648,3409.1,3408.3,1.35149263]
[1641480773491,0.52770248,3409.0,3408.3,1.35149263]
[1641480773891,0.52770248,3408.9,3408.3,1.35149263]
[1641480775093,0.781654,3408.8,3408.3,3.35628263]
[1641480775293,0.52770248,3408.9,3408.3,3.35628263]
[1641480775496,0.52770248,3408.4,3408.3,3.35628263]
[1641480775897,0.52770248,3408.4,3407.6,2.4520768]
[1641480776096,0.52770248,3407.7,3407.6,2.4520768]
[1641480776697,0.98768448,3407.7,3407.6,2.4520768]
[1641480776898,0.52770248,3407.7,3407.6,2.4520768]
[1641480777098,2.00479,3408.3,3407.6,2.4520768]
[1641480777299,0.781654,3408.2,3407.4,1.47306084]
[1641480777599,0.52770248,3407.6,3407.4,1.47306084]
[1641480777798,0.52770248,3407.5,3407.4,1.47306084]
[1641480778400,2.00479,3408.3,3407.4,1.47306084]
[1641480778598,0.52770248,3408.4,3407.6,1.22783974]
[1641480778999,0.52770248,3408.4,3408.1,2.00479]
[1641480779200,1.24447852,3408.6,3408.1,2.00479]
[1641480779702,0.99546525,3408.8,3408.1,3.23262974]
[1641480780600,0.99546525,3408.8,3408.7,1.46589521]
[1641480780800,0.99546525,3408.8,3408.5,0.97229752]
[1641480781001,0.99546525,3409.1,3408.7,1.46586083]
[1641480781203,0.99546525,3409.1,3408.5,2.97708752]
[1641480781405,0.99546525,3409.1,3408.6,0.99977716]
[1641480781900,0.99546525,3409.1,3408.9,0.97229752]
[1641480782099,0.99546525,3409.1,3408.6,0.99977716]
[1641480782300,2.00479,3409.3,3408.7,1.84132605]
[1641480782500,2.00479,3409.3,3408.9,2.44535836]
[1641480782900,0.99546525,3409.9,3408.9,2.44535836]
[1641480783101,0.99546525,3409.9,3409.3,2.00479]
[1641480783500,1.52316773,3410.0,3409.3,2.00479]
[1641480783701,0.99546525,3410.0,3409.3,2.00479]
[1641480783905,0.52770248,3409.6,3409.3,2.00479]
[1641480784102,0.384472,3409.9,3409.3,2.00479]
[1641480784306,0.99546525,3410.0,3409.3,2.00479]
[1641480784505,0.52770248,3409.5,3409.3,2.00479]
[1641480784707,0.99546525,3410.0,3409.9,0.73464081]
[1641480784905,0.98768448,3410.0,3409.9,0.73464081]
[1641480785311,0.52770248,3410.0,3409.9,0.73464081]
[1641480786209,0.52770248,3410.0,3409.7,0.73464081]
[1641480786410,0.52770248,3409.8,3409.7,0.73464081]
[1641480786609,2.02770248,3409.8,3409.7,4.081e-05]
[1641480786809,12.68,3409.7,3409.1,1.22469785]
[1641480787109,2.00479,3409.3,3409.1,1.22469785]
[1641480787408,0.98768448,3409.2,3409.0,1.22469785]
[1641480788407,0.384472,3409.1,3409.0,1.22469785]
[1641480788808,0.66996143,3409.1,3408.6,0.46711833]
[1641480789010,0.52770248,3408.7,3408.6,0.46711833]
[1641480789208,0.98768448,3408.7,3408.6,0.46711833]
[1641480789409,0.52770248,3408.7,3408.6,0.46711833]
[1641480790212,0.98768448,3408.7,3408.6,0.46711833]
[1641480790711,1.38486648,3408.7,3408.6,0.46711833]
[1641480792417,1.38486648,3408.7,3408.6,1.44938095]
[1641480792714,1.38486648,3408.7,3408.6,0.04808095]
[1641480793014,12.68,3408.6,3407.6,2.4520768]
[1641480793213,0.52770248,3407.9,3407.6,2.4520768]
[1641480793415,1.37215648,3407.9,3407.6,2.4520768]
[1641480793613,1.37215648,3407.9,3407.7,1.84132605]
[1641480793815,0.397182,3407.8,3407.7,1.84132605]
[1641480795218,2.401972,3407.8,3407.4,2.4520768]
[1641480795417,2.401972,3407.8,3407.1,0.62288319]
[1641480795418,2.401972,3407.8,3407.0,1.84132605]
[1641480795617,0.52770248,3407.4,3407.0,1.84132605]
[1641480796620,0.52770248,3407.1,3407.0,1.84132605]
[1641480796818,0.949972,3407.1,3407.0,1.84132605]
[1641480797118,1.347154,3407.1,3407.0,1.84132605]
[1641480797418,2.847154,3407.1,3407.0,1.84132605]
[1641480797621,15.947256,3407.1,3406.5,3.065096]
[1641480797918,1.5,3406.6,3405.7,6.46381014]
[1641480798119,0.397182,3406.5,3405.7,6.46381014]
[1641480798318,1.5,3406.7,3405.7,6.46381014]
[1641480798918,0.384472,3406.6,3405.7,6.46381014]
[1641480799120,2.00479,3406.5,3405.7,8.46860014]
[1641480799318,0.420102,3406.4,3405.7,8.46860014]
[1641480799518,0.971102,3406.4,3405.7,8.46860014]
[1641480799718,0.971102,3406.4,3405.7,4.78889473]
[1641480799918,0.971102,3406.4,3405.7,2.00479]
[1641480803127,0.551,3406.4,3405.7,2.00479]
[1641480803331,2.00479,3406.8,3406.3,1.46687575]
[1641480803529,2.00479,3406.8,3406.3,2.17117575]
[1641480803929,2.00479,3406.8,3406.3,0.7043]
[1641480804330,0.397182,3406.7,3406.3,0.7043]
[1641480804532,0.397182,3406.7,3406.2,3.08049965]
[1641480805131,2.00479,3406.4,3406.2,3.08049965]
[1641480805333,0.817284,3406.3,3406.2,3.08049965]
[1641480805934,0.397182,3406.3,3406.1,1.84806796]
[1641480806136,2.00479,3406.4,3406.2,0.193098]
[1641480806334,2.00479,3406.8,3406.1,1.84806796]
[1641480806535,0.397182,3406.7,3406.1,1.84806796]
[1641480807236,0.397182,3406.7,3406.3,1.84806796]
[1641480808436,0.397182,3406.7,3406.2,3.85285796]
[1641480809442,0.397182,3406.7,3406.6,1.47794718]
[1641480809639,0.817284,3406.7,3406.6,1.47794718]
[1641480810341,0.817284,3406.7,3406.5,1.47794718]
[1641480811641,1.480084,3406.7,3406.5,1.47794718]
[1641480812145,14.18,3406.6,3406.3,1.47794718]
[1641480812341,1.5,3406.4,3406.1,1.84806796]
[1641480812543,1.5,3406.2,3405.8,2.46409061]
[1641480812743,1.5,3405.9,3405.6,0.23619026]
[1641480812945,1.5,3405.7,3405.6,0.23619026]
[1641480813143,5.929682,3405.7,3405.6,0.23619026]
[1641480813343,5.929682,3405.7,3404.3,6.01712659]
[1641480813544,1.5,3405.4,3404.3,6.01712659]
[1641480813745,0.397182,3405.3,3404.8,3.38533896]
[1641480814748,0.384472,3405.2,3404.3,5.68449541]
[1641480814946,1.003472,3405.2,3404.3,5.68449541]
[1641480815147,2.00479,3405.1,3404.3,5.68449541]
[1641480815748,2.00479,3405.1,3404.3,2.00479]
[1641480816749,0.01008858,3405.1,3404.4,0.73136929]
[1641480816949,0.01008858,3405.1,3404.4,2.19913208]
[1641480817152,0.384472,3405.2,3404.7,2.00479]
[1641480818455,2.00479,3405.7,3404.7,2.00479]
[1641480818654,32.75218278,3407.0,3405.0,1.46748278]
[1641480818853,0.74801622,3407.3,3405.7,1.5]
[1641480819054,31.26001622,3407.3,3405.7,2.3847]
[1641480819258,2.00479,3407.2,3406.4,2.00479]
[1641480819455,0.781654,3407.1,3406.4,2.81879]
[1641480819856,14.180554,3407.1,3406.4,0.814]
[1641480820059,14.180554,3407.1,3405.5,1.46726531]
[1641480820060,15.680554,3407.1,3405.5,1.46726531]
[1641480820258,15.680554,3407.1,3405.2,0.73136929]
[1641480820458,1.5,3406.3,3405.2,0.73136929]
[1641480820658,0.7344,3406.3,3405.2,0.73136929]
[1641480821363,2.73919,3406.3,3405.6,2.00479]
[1641480821558,0.781654,3406.2,3405.6,2.00479]
[1641480822461,0.384472,3406.2,3405.7,1.19892367]
[1641480823361,0.384472,3406.2,3406.0,2.00479]
[1641480823562,0.420102,3406.1,3406.0,2.00479]
[1641480823763,0.384472,3406.2,3406.0,2.00479]
[1641480824160,0.384472,3406.2,3406.0,2.197888]
[1641480824360,2.00479,3406.7,3406.0,2.197888]
[1641480824561,33.5707,3407.3,3406.0,3.041888]
[1641480825265,33.5707,3407.3,3406.6,2.00479]
[1641480825463,1.5,3406.8,3406.6,2.00479]
[1641480825663,0.420102,3406.7,3406.0,2.00479]
[1641480825863,1.5,3406.4,3406.0,2.00479]
[1641480826065,0.397182,3406.3,3406.0,2.00479]
[1641480826463,0.420102,3406.2,3406.0,2.00479]
[1641480827465,0.804574,3406.2,3406.0,2.00479]
[1641480827767,1.897182,3406.1,3404.6,0.73136929]
[1641480828066,1.5,3405.8,3404.6,0.73136929]
[1641480828265,0.6671,3405.8,3404.6,0.73136929]
[1641480829168,0.6671,3405.8,3404.4,1.46776279]
[1641480829367,0.74801622,3405.4,3405.1,2.00479]
[1641480829568,0.74801622,3405.4,3405.3,1.21770511]
[1641480830666,0.74801622,3405.4,3405.2,0.193098]
[1641480830866,0.99692535,3405.7,3405.3,2.15179726]
[1641480831067,2.75280622,3405.9,3405.3,2.15179726]
[1641480831266,0.74801622,3405.9,3405.3,2.15179726]
[1641480831768,0.74801622,3405.9,3405.4,1.5]
[1641480831968,0.74801622,3405.9,3405.7,1.4671749]
[1641480832170,0.74801622,3405.9,3405.8,0.193098]
[1641480832473,0.74801622,3406.0,3405.8,1.39813389]
[1641480832670,0.74801622,3406.0,3405.8,2.89813389]
[1641480832874,1.24639466,3406.5,3405.9,14.14683702]
[1641480833072,1.84963009,3407.0,3406.4,1.5]
[1641480833274,2.46617345,3407.2,3406.9,4.00958]
[1641480833471,2.46617345,3407.2,3407.0,0.193098]
[1641480834075,4.88746789,3407.7,3407.1,1.46651865]
[1641480834276,1.49548237,3407.7,3407.1,2.28371865]
[1641480834476,1.49548237,3407.7,3407.2,1.0154168]
[1641480835277,1.49548237,3407.7,3407.6,2.00479]
[1641480835480,0.420102,3407.7,3407.6,2.00479]
[1641480835881,0.46723193,3408.1,3407.6,2.00479]
[1641480836080,0.85170393,3408.1,3407.6,2.00479]
[1641480836980,0.46723193,3408.1,3407.6,2.00479]
[1641480837181,0.46723193,3408.0,3407.7,1.13600414]
[1641480837382,0.46723193,3408.0,3407.8,0.193098]
[1641480837583,0.46723193,3408.0,3407.9,1.46623266]
[1641480838183,0.46723193,3408.0,3407.8,0.193098]
[1641480838584,0.62299391,3408.6,3407.9,1.79335093]
[1641480838585,1.09022584,3408.6,3407.9,1.79335093]
[1641480838783,0.85170393,3408.6,3407.9,1.79335093]
[1641480839384,0.85170393,3408.6,3408.2,2.00479]
[1641480840184,0.46723193,3408.5,3408.2,2.00479]
[1641480840385,0.46723193,3408.5,3408.3,0.193098]
[1641480840586,0.420102,3408.4,3408.2,2.00479]
[1641480840784,1.241702,3408.4,3408.2,2.00479]
[1641480841087,1.241702,3408.4,3407.8,1.82860629]
[1641480841285,2.00479,3408.3,3407.8,1.82860629]
[1641480842187,0.46723193,3408.2,3407.7,1.46634661]
[1641480843385,0.46723193,3408.2,3408.0,1.21991583]
[1641480844289,0.420102,3408.1,3408.0,1.21991583]
[1641480844486,1.920102,3408.1,3407.5,1.82860629]
[1641480844686,13.077182,3408.0,3407.5,1.82860629]
[1641480844886,0.384472,3407.9,3407.5,1.82860629]
[1641480845288,0.781654,3407.9,3407.5,1.82860629]
[1641480845488,4.00958,3407.6,3407.5,1.82860629]
[1641480845691,5.171482,3407.6,3407.5,1.82860629]
[1641480846090,5.171482,3407.6,3406.8,1.82860629]
[1641480846489,0.397182,3407.5,3406.8,1.82860629]
[1641480847489,2.00479,3407.1,3406.8,1.82860629]
[1641480847690,2.00479,3407.1,3406.9,0.193098]
[1641480848590,2.00479,3407.1,3406.8,1.82860629]
[1641480848790,2.389262,3407.1,3406.4,4.97170017]
[1641480849289,2.389262,3407.1,3406.4,3.47170017]
[1641480849691,0.397182,3407.0,3406.4,3.50479]
[1641480849893,12.68,3407.0,3405.8,0.62298774]
[1641480850096,12.68,3407.0,3405.9,1.5]
[1641480851497,2.00479,3406.1,3405.9,1.5]
[1641480851696,2.976492,3406.1,3405.9,1.5]
[1641480851895,2.976492,3406.1,3405.9,1.693098]
[1641480852096,2.976492,3406.1,3405.9,1.5]
[1641480852997,2.976492,3406.1,3405.5,1.5]
[1641480853198,15.656492,3406.1,3405.5,1.5]
[1641480853400,2.00479,3405.6,3404.8,1.46756247]
[1641480853597,0.397182,3405.5,3404.8,1.46756247]
[1641480853797,0.397182,3405.5,3404.3,2.00479]
[1641480853798,0.397182,3405.5,3405.2,0.72605563]
[1641480853997,0.420102,3405.4,3405.2,0.72605563]
[1641480854198,0.397182,3405.3,3405.2,0.72605563]
[1641480855199,0.397182,3405.3,3404.4,2.17816688]
[1641480855400,2.00479,3404.9,3404.4,0.72605563]
[1641480855599,2.00479,3404.9,3404.5,0.397182]
[1641480856204,0.384472,3404.8,3404.5,0.397182]
[1641480856401,0.384472,3404.8,3404.6,0.193098]
[1641480856800,0.804574,3404.8,3404.6,0.193098]
[1641480857701,2.00479,3404.9,3404.7,1.5]
[1641480857900,2.0194619,3406.1,3404.8,0.59028]
[1641480858100,0.384472,3405.5,3404.8,0.59028]
[1641480858301,0.384472,3405.5,3405.2,1.5]
[1641480858500,0.420102,3405.4,3404.8,1.5]
[1641480858703,0.420102,3405.4,3404.9,0.397182]
[1641480859100,0.397182,3405.3,3404.5,1.5]
[1641480859303,0.397182,3405.3,3404.3,2.00479]
[1641480859501,2.00479,3404.4,3404.0,1.21009271]
[1641480859703,2.66429,3404.4,3404.0,1.21009271]
[1641480860202,0.397182,3404.3,3404.0,1.21009271]
[1641480860402,0.420102,3404.2,3404.0,1.21009271]
[1641480860801,0.397182,3404.1,3404.0,1.21009271]
[1641480861601,0.397182,3404.1,3403.8,1.5]
[1641480861802,0.420102,3404.0,3403.8,1.5]
[1641480862002,0.397182,3404.1,3403.8,1.693098]
[1641480862404,0.397182,3404.1,3403.8,1.5]
[1641480862604,0.420102,3404.0,3403.8,1.5]
[1641480862806,0.397182,3403.9,3403.6,0.38248143]
[1641480863205,0.397182,3403.9,3403.5,2.00479]
[1641480863708,0.397182,3403.9,3403.5,3.50479]
[1641480864605,0.397182,3403.9,3403.5,2.00479]
[1641480865307,1.46892705,3403.6,3402.9,1.21009271]
[1641480865510,3.68098634,3403.0,3402.9,1.20809271]
[1641480865706,4.10108834,3403.0,3402.9,1.20809271]
[1641480866105,4.49827034,3403.0,3402.6,2.07564816]
[1641480866309,17.17827034,3403.0,3402.6,2.07564816]
[1641480866506,17.17827034,3403.0,3402.1,0.35100145]
[1641480867508,4.00958,3402.2,3402.1,0.35100145]
[1641480867710,5.945536,3402.2,3402.1,0.35100145]
[1641480867911,5.945536,3402.2,3401.9,1.45211125]
[1641480868113,18.625536,3402.2,3401.5,0.62353691]
[1641480868314,9.99999999,3401.9,3400.9,3.35156676]
[1641480868512,9.99999999,3401.9,3399.7,13.074]
[1641480868513,1.47009748,3401.6,3401.5,1.4620418]
[1641480868714,1.47009748,3401.6,3400.7,3.04592042]
[1641480868715,12.68,3401.5,3401.0,2.43673634]
[1641480868914,13.3932,3401.5,3401.0,2.43673634]
[1641480869112,12.68,3401.3,3401.0,3.634e-05]
[1641480869315,12.68,3401.3,3400.5,3.35051246]
[1641480869512,18.15989363,3400.6,3400.0,3.67970541]
[1641480869714,0.781654,3400.5,3400.0,3.67970541]
[1641480871014,0.781654,3400.5,3399.2,1.5]
[1641480871614,2.00479,3399.4,3399.2,1.5]
[1641480871814,1.201756,3399.3,3399.2,1.5]
[1641480872216,1.201756,3399.3,3398.6,1.09242798]
[1641480872217,13.881756,3399.3,3398.6,1.09242798]
[1641480872816,1.47097545,3398.9,3398.6,1.09242798]
[1641480873017,0.817284,3398.8,3398.6,1.09242798]
[1641480873418,0.817284,3398.8,3397.4,3.67970541]
[1641480873618,12.68,3398.3,3397.6,2.00479]
[1641480873816,0.781654,3398.2,3397.6,2.00479]
[1641480874421,2.00479,3398.4,3398.1,1.5]
[1641480874716,2.00479,3398.4,3398.3,1.5]
[1641480875118,33.0166077,3399.7,3398.3,1.5]
[1641480875322,33.0166077,3399.7,3398.2,0.397182]
[1641480875323,33.0166077,3399.7,3398.7,1.5]
[1641480875518,14.68479,3399.2,3398.7,1.5]
[1641480875718,0.781654,3399.1,3398.7,1.5]
[1641480876119,0.781654,3399.1,3398.9,1.85670588]
[1641480876319,0.420102,3399.0,3398.9,1.85670588]
[1641480876620,1.89107745,3399.0,3398.9,1.85670588]
[1641480877219,1.89107745,3399.0,3398.7,2.47560784]
[1641480877421,0.397182,3398.9,3398.7,1.48647366]
[1641480877618,15.104892,3398.8,3398.7,1.48647366]
[1641480877819,15.951392,3398.8,3398.7,1.48647366]
[1641480879521,15.104892,3398.8,3398.7,2.98647366]
[1641480879722,2.00479,3398.8,3398.7,4.67957166]
[1641480879919,0.74049085,3399.0,3398.7,4.67957166]
[1641480880119,0.74049085,3399.0,3398.9,1.5]
[1641480880320,2.389262,3399.2,3398.9,1.5]
[1641480880523,0.384472,3399.2,3399.1,1.5]
[1641480880927,0.384472,3399.2,3398.8,0.397182]
[1641480880928,0.384472,3399.2,3398.8,1.897182]
[1641480881124,0.8291,3399.6,3399.1,1.5]
[1641480881324,33.6072,3400.5,3399.5,1.5]
[1641480881523,2.00479,3399.9,3399.5,1.5]
[1641480881727,2.00479,3399.9,3399.1,2.00479]
[1641480882024,2.00479,3399.9,3399.7,1.5]
[1641480882226,2.00479,3399.9,3399.8,0.193098]
[1641480882426,2.424892,3399.9,3399.7,1.897182]
[1641480882726,2.00479,3399.9,3399.7,1.897182]
[1641480882932,2.00479,3399.9,3399.7,1.5]
[1641480883131,2.401972,3399.9,3399.7,1.5]
[1641480883332,0.420102,3399.8,3399.2,1.5]
[1641480883635,0.397182,3399.7,3399.1,2.00479]
[1641480884833,0.397182,3399.7,3399.3,1.5]
[1641480885034,1.47058607,3399.8,3399.6,1.5]
[1641480885336,2.00479,3399.9,3399.6,1.5]
[1641480885535,2.00479,3399.9,3399.1,2.00479]
[1641480885536,2.00479,3399.9,3399.8,1.5]
[1641480886138,2.00479,3399.9,3399.8,1.693098]
[1641480886339,0.459982,3399.8,3399.1,2.00479]
[1641480886937,0.397182,3399.7,3398.2,1.45895697]
[1641480887137,0.397182,3399.7,3390.9,72.79429918]
[1641480887337,1.86781565,3399.7,3397.8,1.5]
[1641480887537,2.00479,3399.3,3398.5,2.00479]
[1641480887737,2.00479,3399.3,3398.6,0.092343]
[1641480887939,0.384472,3399.2,3398.6,0.092343]
[1641480888138,0.935572,3399.2,3398.6,0.092343]
[1641480889938,1.332754,3399.2,3398.6,0.092343]
[1641480890340,1.332754,3399.2,3398.2,2.00479]
[1641480890541,1.47088241,3399.1,3398.2,2.00479]
[1641480890741,1.5,3399.0,3398.2,2.00479]
[1641480891041,0.397182,3398.9,3398.2,2.00479]
[1641480891243,0.397182,3398.9,3396.9,1.25948784]
[1641480891244,1.47109879,3398.6,3396.7,32.14119879]
[1641480891443,1.5,3398.5,3396.7,1.47109879]
[1641480891645,2.00479,3397.7,3396.9,2.00479]
[1641480891846,0.384472,3397.6,3397.0,0.092343]
[1641480893640,0.781654,3397.6,3397.0,0.092343]
[1641480894444,2.55009,3397.7,3397.2,1.5]
[1641480894641,2.55009,3397.7,3397.0,0.092343]
[1641480894642,0.5453,3397.7,3397.3,0.092343]
[1641480895045,0.384472,3397.8,3397.3,0.092343]
[1641480895644,1.47088241,3399.1,3397.7,1.5]
[1641480896044,1.47088241,3399.1,3397.3,2.60519]
[1641480896245,2.946,3402.5,3397.3,2.60519]
[1641480896246,1.5,3399.4,3397.3,2.60519]
[1641480896448,1.5,3399.3,3397.3,2.60519]
[1641480896646,12.68,3399.6,3397.3,2.60519]
[1641480896846,64.6017,3399.7,3397.3,2.00479]
[1641480897048,1.47080669,3399.3,3397.8,1.5]
[1641480897646,2.00479,3399.0,3398.2,2.00479]
[1641480897847,0.781654,3398.9,3398.2,2.00479]
[1641480898047,0.781654,3398.9,3398.2,2.097133]
[1641480898448,2.00479,3399.0,3398.2,2.097133]
[1641480898648,2.00479,3399.0,3398.5,1.5]
[1641480898848,1.5,3401.3,3398.7,1.5]
[1641480899050,1.47033741,3400.4,3398.7,1.5]
[1641480899252,31.2061,3401.2,3398.7,1.5]
[1641480899253,1.47025527,3400.5,3398.7,1.5]
[1641480899652,2.00479,3399.9,3399.1,2.00479]
[1641480899852,0.384472,3399.8,3399.2,0.092343]
[1641480900251,2.00479,3399.9,3399.2,0.092343]
[1641480900450,1.47067258,3399.6,3398.4,0.619]
[1641480900652,2.00479,3399.9,3398.9,1.5]
[1641480900850,2.00479,3399.9,3398.5,1.47028121]
[1641480900851,2.00479,3399.9,3398.5,2.97028121]
[1641480901254,2.00479,3399.9,3398.5,1.47028121]
[1641480901652,2.00479,3399.9,3399.1,2.00479]
[1641480901853,0.781654,3399.8,3399.2,0.092343]
[1641480902454,0.384472,3399.8,3399.2,0.092343]
[1641480903252,0.781654,3399.8,3399.2,0.092343]
[1641480904253,0.384472,3399.8,3399.2,0.092343]
[1641480904653,0.397182,3399.7,3399.1,2.00479]
[1641480904855,1.5,3399.6,3399.1,2.00479]
[1641480905053,0.397182,3399.5,3399.1,2.00479]
[1641480906153,0.397182,3399.5,3399.1,0.00676159]
[1641480907459,0.384472,3399.8,3399.1,0.00676159]
[1641480907657,2.00479,3399.9,3399.2,1.5]
[1641480907857,2.00479,3399.9,3399.3,0.092343]
[1641480908659,0.81812703,3409.0,3399.8,1.5]
[1641480908858,1.23659172,3399.7,3399.3,33.4383]
[1641480909059,1.7954214,3400.3,3399.4,0.092343]
[1641480909060,0.62437552,3399.9,3399.4,0.092343]
[1641480909558,0.62437552,3399.9,3399.5,1.36746288]
[1641480909759,0.62437552,3399.9,3399.8,4.00958]
[1641480910158,7.552e-05,3399.9,3399.8,4.00958]
[1641480910459,1.49865783,3400.0,3399.8,4.101923]
[1641480910662,1.49865783,3400.8,3399.8,5.601923]
[1641480910861,1.49865783,3400.8,3400.6,1.5]
[1641480911060,1.7954214,3401.0,3400.7,0.092343]
[1641480911264,2.49749367,3401.3,3400.8,1.4693285]
[1641480911464,2.49749367,3401.3,3400.9,0.092343]
[1641480911761,2.49749367,3401.3,3401.2,4.00958]
[1641480911961,2.49749367,3401.3,3401.2,4.101923]
[1641480912665,2.49749367,3401.9,3401.2,4.101923]
[1641480913261,2.49749367,3401.9,3401.2,5.601923]
[1641480913462,2.49749367,3401.9,3401.2,4.101923]
[1641480913669,2.49749367,3401.9,3401.8,2.00479]
[1641480914066,3.40062723,3402.4,3401.8,2.00479]
[1641480914263,2.49749367,3402.5,3401.9,0.092343]
[1641480914464,0.384472,3402.4,3401.9,0.092343]
[1641480915065,0.781654,3402.4,3401.9,0.092343]
[1641480915665,0.781654,3402.4,3401.8,2.74800139]
[1641480915865,1.583954,3402.4,3401.8,2.74800139]
[1641480916465,1.583954,3402.4,3401.8,2.00479]
[1641480917668,0.781654,3402.4,3401.8,2.097133]
[1641480918067,2.49749367,3402.6,3402.0,1.5]
[1641480918267,2.49749367,3402.6,3402.1,0.092343]
[1641480918468,3.27914767,3402.6,3402.1,0.092343]
[1641480918869,3.27914767,3402.6,3401.8,2.00479]
[1641480919071,3.27914767,3402.6,3401.9,0.092343]
[1641480919470,3.27914767,3402.6,3401.8,2.00479]
[1641480919669,1.418454,3402.6,3401.8,2.00479]
[1641480920070,1.46939759,3402.5,3401.8,2.00479]
[1641480920374,0.397182,3402.4,3401.8,2.00479]
[1641480922172,0.397182,3402.4,3400.6,1.46939759]
[1641480922373,1.5,3401.7,3400.5,0.74321139]
[1641480922572,13.461654,3401.6,3400.5,0.74321139]
[1641480922974,0.781654,3401.6,3400.5,0.74321139]
[1641480923272,0.781654,3401.6,3400.1,0.74321139]
[1641480923674,0.781654,3401.6,3400.1,2.24321139]
[1641480923872,2.00479,3401.7,3400.9,2.00479]
[1641480924079,0.397182,3401.6,3401.0,0.092343]
[1641480924673,0.384472,3401.5,3401.0,0.092343]